fUSD/lending_fUSD_20250110
["ID","MTS","AMOUNT","RATE_DAILY","PERIOD"]
[348471732,1736547036798,-662.28,0.0001082,2]
[348471733,1736547036807,-1144.28,0.0001082,2]
[348471734,1736547036816,-500.0,0.00010821,2]
[348471735,1736547036827,-315.60001105,0.00010821,2]
[348471736,1736547036836,-315.60001105,0.00010829,2]
[348471737,1736547036846,-315.60001105,0.00010836,2]
[348471738,1736547036856,-315.60001105,0.00010843,2]
[348471739,1736547036866,-315.60001105,0.00010851,2]
[348471740,1736547036876,-500.0,0.00010856,2]
[348471741,1736547036885,-500.0,0.00010857,2]
[348471742,1736547036896,-500.0,0.00010857,2]
[348471743,1736547036906,-568.11,0.00010857,2]
[348471744,1736547036915,-878.47,0.00010857,2]
[348471745,1736547036925,-739.12,0.00010857,2]
[348471746,1736547036934,-600.61,0.00010857,2]
[348471747,1736547036945,-2430.26,0.00010857,2]
[348471748,1736547036954,-823.16,0.00010857,2]
[348471749,1736547036964,-2127.02,0.00010857,2]
[348471750,1736547036974,-2326.22,0.00010857,2]
[348471751,1736547036984,-500.0,0.00010857,2]
[348471752,1736547036993,-914.59,0.00010857,2]
[348471753,1736547037004,-2207.64593214,0.00010858,2]
[348471754,1736547037013,-333.47588478,0.00010858,2]
[348471755,1736547037024,-2346.85853029,0.00010858,2]
[348471756,1736547037033,-337.35279639,0.00010858,2]
[348471757,1736547037043,-315.60001105,0.00010858,2]
[348471758,1736547037051,-151.82897493,0.00010873,2]
[348471759,1736547037060,-500.0,0.00010873,2]
[348471760,1736547037070,-151.06685304,0.00010873,2]
[348471761,1736547037079,-511.25,0.00010891,2]
[348471762,1736547037088,-1000.0,0.00010893,2]
[348471763,1736547037097,-1500.0,0.000109,3]
[348471764,1736547037106,-159.39650356,0.000109,2]
[348471765,1736547037115,-204.6173563,0.000109,2]
[348471766,1736547037125,-8551.11688589,0.0001095,2]
[348471767,1736547037135,-411.39158693,0.00010956,2]
[348471768,1736547037145,-500.0,0.00010956,2]
[348471769,1736547037155,-449.24144614,0.00010956,2]
[348471770,1736547037166,-380.74060403,0.00010956,2]
[348471771,1736547037175,-500.0,0.00010956,2]
[348471772,1736547037184,-500.0,0.00010956,2]
[348471773,1736547037194,-500.0,0.00010956,2]
[348471774,1736547037203,-500.0,0.00010956,2]
[348471775,1736547037212,-500.0,0.00010956,2]
[348471776,1736547037223,-500.0,0.00010956,2]
[348471777,1736547037233,-500.0,0.00010956,2]
[348471778,1736547037242,-500.0,0.00010956,2]
[348471779,1736547037251,-500.0,0.00010956,2]
[348471780,1736547037261,-500.0,0.00010956,2]
[348471781,1736547037272,-500.0,0.00010956,2]
[348471782,1736547037281,-500.0,0.00010956,2]
[348471783,1736547037291,-500.0,0.00010956,2]
[348471784,1736547037301,-500.0,0.00010956,2]
[348471785,1736547037310,-578.34,0.00010956,2]
[348471786,1736547037319,-732.33,0.00010956,2]
[348471787,1736547037328,-618.96,0.00010956,2]
[348471788,1736547037337,-559.88,0.00010956,2]
[348471789,1736547037347,-1474.14,0.00010956,2]
[348471790,1736547037356,-595.01,0.00010956,2]
[348471791,1736547037366,-500.0,0.00010956,2]
[348471792,1736547037377,-177.64604237,0.00010956,2]
[348471793,1736547037386,-500.0,0.00010956,2]
[348471794,1736547037396,-500.0,0.00010956,2]
[348471795,1736547037406,-1558877.39837491,0.00010957,2]
[348471796,1736547037467,-500.0,0.00010819,2]
[348471797,1736547037478,-2498.67408254,0.00010957,2]
[348471798,1736547037490,-541.345,0.00010957,2]
[348471799,1736547037503,-5307.92847345,0.00010957,2]
[348471800,1736547037515,-1151.2542141,0.00010957,2]
[348471801,1736547037527,-1675.425,0.00010957,2]
[348471802,1736547037539,-777.91252122,0.00010957,2]
[348471803,1736547037551,-3400.00000001,0.00010957,2]
[348471804,1736547037564,-1350.31306839,0.00010957,2]
[348471807,1736547037612,-648.7,0.00010818,2]
[348471809,1736547037622,-76.591,0.00010818,2]
[348471810,1736547037638,-423.409,0.00010818,2]
[348471811,1736547037648,-1520.571,0.00010957,2]
[348471812,1736547037659,-39266.56759798,0.00010957,2]
[348471813,1736547037672,-1633.06952951,0.00010957,2]
[348471818,1736547038617,-500.0,0.00010819,2]
[348471819,1736547038628,-7330.02499154,0.00010858,2]
[348471820,1736547038637,-9714.86147019,0.00010957,2]
[348471821,1736547038653,-1363.83747749,0.00010957,2]
[348471822,1736547038664,-4865.79896752,0.00010957,2]
[348471823,1736547038676,-303715.5663615,0.00010957,2]
[348471824,1736547038688,-1022.0,0.00010957,2]
[348471825,1736547038699,-2374.24422636,0.00010957,2]
[348471826,1736547038711,-468.395,0.00010957,2]
[348471827,1736547038722,-2513.2158088,0.00010957,2]
[348471828,1736547038742,-6823.99999999,0.00010957,2]
[348471829,1736547038754,-9507.68040248,0.00010957,2]
[348471830,1736547039042,-2360.73409,0.00010957,2]
[348471831,1736547039053,-500.0,0.00010957,2]
[348471832,1736547039070,-376.72392996,0.00010957,2]
[348471833,1736547039097,-9231.53628286,0.00010957,2]
[348471834,1736547039109,-1721.48259596,0.00010957,2]
[348471835,1736547039128,-517.7691157,0.00010957,2]
[348471836,1736547039140,-4000.0,0.00010957,2]
[348471841,1736547039823,-708.8,0.00010818,2]
[348471842,1736547039833,-2222.23420521,0.00010957,2]
[348471846,1736547039993,-2768.128,0.00010957,2]
[348471847,1736547040004,-4126.13424394,0.00010957,2]
[348471848,1736547040015,-3529.65000033,0.00010957,2]
[348471849,1736547040026,-265.7675427,0.00010957,2]
[348471850,1736547040159,-972.0432377,0.00010957,2]
[348471851,1736547040170,-1425.60811989,0.00010957,2]
[348471852,1736547040249,-495.00000005,0.00010957,2]
[348471853,1736547040262,-3719.27464023,0.00010957,2]
[348471862,1736547042990,-439.97040092,0.00010957,2]
[348471863,1736547043002,-13624.54828251,0.00010957,2]
[348471864,1736547043150,-778870.83616857,0.00010957,2]
[348471865,1736547043162,-7322.92461332,0.00010957,2]
[348471870,1736547045812,-500.0,0.00010818,2]
[348471871,1736547045821,-59019.57596014,0.00010957,2]
[348471872,1736547045835,-1065.83165509,0.00010957,2]
[348471874,1736547045853,-1787.30255397,0.00010957,2]
[348471875,1736547045865,-4241.82829066,0.00010957,2]
[348471876,1736547045878,-949.58287885,0.00010957,2]
[348471877,1736547045957,-500.0,9.999e-05,2]
[348471878,1736547045967,-221.22,0.00010957,2]
[348471879,1736547046062,-866.37474104,0.00010957,2]
[348471880,1736547046074,-12532.46973317,0.00010957,2]
[348471881,1736547046086,-7391.51999648,0.00010957,2]
[348471882,1736547046098,-4366.0,0.00010957,2]
[348471883,1736547046142,-996.32490086,0.00010957,2]
[348471884,1736547046207,-16020.74743192,0.00010957,2]
[348471887,1736547435139,535.62,8.219e-05,2]
[348471888,1736548171138,-3944.82443099,9e-05,2]
[348471891,1736548232078,-1748.20828921,9e-05,2]
[348471894,1736548232168,-1234.15435945,9e-05,2]
[348471895,1736548232179,-67.08749707,9.577e-05,2]
[348471898,1736548238110,-926.19250293,9.577e-05,2]
[348471899,1736548238121,-1700.0,9.7e-05,3]
[348471900,1736548238132,-340.52448707,9.8e-05,3]
[348471901,1736548238146,-1020.0,9.8e-05,3]
[348471902,1736548238161,-2139.47551293,9.8e-05,3]
[348471903,1736548238171,-250.0,9.806e-05,2]
[348471904,1736548238181,-5200.0,9.9e-05,3]
[348471905,1736548238191,-5000.0,9.9e-05,2]
[348471906,1736548238201,-250.0,9.94e-05,2]
[348471907,1736548238213,-329.65,9.946e-05,2]
[348471908,1736548238224,-186.95,9.952e-05,2]
[348471909,1736548238235,-500.0,9.973e-05,2]
[348471910,1736548238245,-618.94,9.999e-05,2]
[348471911,1736548238255,-500.0,9.999e-05,2]
[348471912,1736548238265,-500.0,9.999e-05,2]
[348471914,1736548238274,-679.27,9.999e-05,2]
[348471916,1736548238284,-500.0,9.999e-05,2]
[348471918,1736548238293,-500.0,9.999e-05,2]
[348471920,1736548238303,-1191.08,9.999e-05,2]
[348471922,1736548238312,-525.01,9.999e-05,2]
[348471924,1736548238324,-500.0,9.999e-05,2]
[348471926,1736548238335,-1163.28,9.999e-05,2]
[348471927,1736548238344,-3035.23,9.999e-05,2]
[348471928,1736548238354,-500.0,9.999e-05,2]
[348471929,1736548238364,-595.25,9.999e-05,2]
[348471930,1736548238374,-622.01,9.999e-05,2]
[348471931,1736548238385,-1427.06,9.999e-05,2]
[348471932,1736548238395,-500.0,9.999e-05,2]
[348471933,1736548238405,-1070.14,9.999e-05,2]
[348471934,1736548238416,-500.0,9.999e-05,2]
[348471935,1736548238426,-1823.5,9.999e-05,2]
[348471936,1736548238435,-868.52,9.999e-05,2]
[348471937,1736548238445,-621.67,9.999e-05,2]
[348471939,1736548238455,-500.0,9.999e-05,2]
[348471940,1736548238464,-1332.28,9.999e-05,2]
[348471941,1736548238473,-754.39,9.999e-05,2]
[348471942,1736548238483,-973.96,9.999e-05,2]
[348471943,1736548238493,-529.565085,9.999e-05,2]
[348471944,1736548238502,-500.0,9.999e-05,2]
[348471945,1736548238512,-500.0,9.999e-05,2]
[348471946,1736548238521,-1003.19,9.999e-05,2]
[348471947,1736548238531,-1235.14,9.999e-05,2]
[348471948,1736548238541,-500.0,9.999e-05,2]
[348471949,1736548238804,-500.0,9.999e-05,2]
[348471950,1736548238815,-401.596303,9.999e-05,2]
[348471951,1736548238824,-500.0,9.999e-05,2]
[348471952,1736548238835,-500.0,9.999e-05,2]
[348471953,1736548238844,-500.0,9.999e-05,2]
[348471954,1736548238854,-703.0,9.999e-05,2]
[348471955,1736548238863,-500.0,9.999e-05,2]
[348471956,1736548238873,-388.8714847,9.999e-05,2]
[348471957,1736548238883,-1243.49,9.999e-05,2]
[348471958,1736548238893,-472789.0,0.0001,2]
[348471959,1736548238902,-264.24558733,0.0001,2]
[348471960,1736548238912,-2062439.91833489,0.0001,2]
[348471961,1736548238921,-1026.69950367,0.0001,2]
[348471962,1736548238931,-7000.0,0.0001,3]
[348471963,1736548238939,-355623.6082683,0.0001,2]
[348471964,1736548238958,-12085.72173401,0.0001,2]
[348471974,1736548240076,-2429.4141106,0.0001,2]
[348471975,1736548240088,-8151.40651174,0.0001,2]
[348471976,1736548240107,-469.31070039,0.0001,2]
[348471977,1736548240247,-10310.28202644,0.0001,2]
[348472004,1736548243110,-500.0,9.999e-05,2]
[348472005,1736548243119,-0.11388834,9.999e-05,2]
[348472014,1736548246171,-499.88611166,9.999e-05,2]
[348472015,1736548246180,-500.0,9.999e-05,2]
[348472016,1736548246190,-500.0,9.999e-05,2]
[348472017,1736548246199,-500.0,9.999e-05,2]
[348472018,1736548246208,-7788.19330205,0.0001,2]
[348472019,1736548399631,551.33,8.219e-05,2]
[348472021,1736549251308,150.0,0.00018771,120]
[348472024,1736549339963,567.64,8.219e-05,2]
[348472035,1736549432397,-300.0,8.818e-05,2]
[348472036,1736549432408,-150.0,8.819e-05,2]
[348472037,1736549432428,-100.0,8.819e-05,2]
[348472038,1736549432438,-350.0,8.819e-05,2]
[348472039,1736549432692,-4874.66,8.819e-05,2]
[348472040,1736549432704,-1662.88863871,8.819e-05,2]
[348472041,1736549432717,-4442.056675,8.819e-05,2]
[348472042,1736549432730,-763.17604652,8.819e-05,2]
[348472043,1736549432741,-165.6949,8.838e-05,2]
[348472044,1736549432751,-250.0,8.924e-05,2]
[348472045,1736549432762,-186.95,8.937e-05,2]
[348472046,1736549432772,-1966.86617828,8.949e-05,2]
[348472047,1736549432785,-6897.6099792,8.949e-05,2]
[348472048,1736549432797,-8097.78225844,8.949e-05,2]
[348472064,1736549438154,-5663.99158408,8.949e-05,2]
[348472065,1736549438164,-186.98138003,8.986e-05,2]
[348472066,1736549438174,-994.63,8.986e-05,2]
[348472067,1736549438184,-772.07,9.071e-05,2]
[348472068,1736549438194,-250.0,9.127e-05,2]
[348472069,1736549438203,-137.73744488,9.13e-05,2]
[348472070,1736549438215,-1406.40255512,9.13e-05,2]
[348472071,1736549438225,-227.41705639,9.214e-05,2]
[348472072,1736549438237,-1018.0,9.214e-05,2]
[348472073,1736549438275,-754.58294361,9.214e-05,2]
[348472074,1736549438284,-976.77,9.22e-05,2]
[348472075,1736549438295,-875.44,9.22e-05,2]
[348472076,1736549438305,-174.22,9.399e-05,2]
[348472077,1736549438315,-150.0,9.479e-05,2]
[348472078,1736549438324,-492.46,9.498e-05,2]
[348472079,1736549438335,-1600.0,9.6e-05,3]
[348472080,1736549438344,-500.0,9.683e-05,2]
[348472081,1736549438354,-3200.0,9.7e-05,3]
[348472082,1736549438364,-5000.0,9.7e-05,2]
[348472083,1736549438373,-420.0,9.7e-05,2]
[348472084,1736549438382,-151.84392741,9.773e-05,2]
[348472085,1736549438392,-165.81279352,9.773e-05,2]
[348472086,1736549438401,-150.0,9.78e-05,2]
[348472087,1736549438410,-437.12,9.78e-05,2]
[348472088,1736549438420,-300.0,9.78e-05,2]
[348472089,1736549438429,-150.0,9.78e-05,2]
[348472090,1736549438439,-239.26,9.78e-05,2]
[348472091,1736549438448,-979.82,9.78e-05,2]
[348472092,1736549438458,-1571.94128903,9.798e-05,2]
[348472094,1736549438467,-1002.49815365,9.799e-05,3]
[348472096,1736549438476,-1002.49815365,9.799e-05,3]
[348472098,1736549438486,-1002.49815365,9.799e-05,3]
[348472100,1736549438500,-1002.49815365,9.799e-05,3]
[348472101,1736549438510,-292.30698525,9.799e-05,2]
[348472102,1736549438519,-7206.614,9.799e-05,2]
[348472103,1736549438529,-340.699,9.799e-05,2]
[348472104,1736549438539,-500.0,9.799e-05,2]
[348472105,1736549438548,-500.0,9.799e-05,2]
[348472106,1736549438558,-500.0,9.799e-05,2]
[348472107,1736549438567,-500.0,9.799e-05,2]
[348472108,1736549438576,-500.0,9.799e-05,2]
[348472109,1736549438586,-500.0,9.799e-05,2]
[348472110,1736549438596,-581.86,9.799e-05,2]
[348472112,1736549438606,-500.0,9.799e-05,2]
[348472113,1736549438615,-500.0,9.799e-05,2]
[348472114,1736549438625,-500.0,9.799e-05,2]
[348472116,1736549438635,-500.0,9.799e-05,2]
[348472117,1736549438645,-500.0,9.799e-05,2]
[348472118,1736549438654,-500.0,9.799e-05,2]
[348472119,1736549438664,-500.0,9.799e-05,2]
[348472120,1736549438674,-500.0,9.799e-05,2]
[348472121,1736549438683,-500.0,9.799e-05,2]
[348472122,1736549438693,-500.0,9.799e-05,2]
[348472123,1736549438703,-258.60833354,9.799e-05,2]
[348472124,1736549438713,-500.0,9.799e-05,2]
[348472125,1736549438723,-500.0,9.799e-05,2]
[348472126,1736549438733,-540.79,9.799e-05,2]
[348472127,1736549438742,-500.0,9.799e-05,2]
[348472128,1736549438752,-500.0,9.799e-05,2]
[348472129,1736549438761,-500.0,9.799e-05,2]
[348472130,1736549438771,-500.0,9.799e-05,2]
[348472131,1736549438781,-500.0,9.799e-05,2]
[348472132,1736549438790,-500.0,9.799e-05,2]
[348472133,1736549438800,-500.0,9.799e-05,2]
[348472134,1736549438810,-500.0,9.799e-05,2]
[348472135,1736549438820,-500.0,9.799e-05,2]
[348472136,1736549438829,-500.0,9.799e-05,2]
[348472137,1736549438838,-500.0,9.799e-05,2]
[348472138,1736549438848,-500.0,9.799e-05,2]
[348472139,1736549438857,-500.0,9.799e-05,2]
[348472140,1736549438867,-500.0,9.799e-05,2]
[348472141,1736549438877,-500.0,9.799e-05,2]
[348472142,1736549438887,-606.87,9.799e-05,2]
[348472143,1736549438896,-500.0,9.799e-05,2]
[348472144,1736549438906,-500.0,9.799e-05,2]
[348472145,1736549438915,-500.0,9.799e-05,2]
[348472146,1736549438924,-500.0,9.799e-05,2]
[348472147,1736549438934,-500.0,9.799e-05,2]
[348472148,1736549438944,-500.0,9.799e-05,2]
[348472149,1736549438953,-500.0,9.799e-05,2]
[348472150,1736549438963,-502.36252508,9.799e-05,2]
[348472151,1736549438972,-500.0,9.799e-05,2]
[348472152,1736549438981,-500.0,9.799e-05,2]
[348472153,1736549438990,-500.0,9.799e-05,2]
[348472154,1736549438999,-500.0,9.799e-05,2]
[348472155,1736549439009,-495.9130096,9.799e-05,2]
[348472156,1736549439018,-500.0,9.799e-05,2]
[348472157,1736549439027,-500.0,9.799e-05,2]
[348472158,1736549439037,-500.0,9.799e-05,2]
[348472159,1736549439046,-500.0,9.799e-05,2]
[348472160,1736549439056,-500.0,9.799e-05,2]
[348472161,1736549439066,-500.0,9.799e-05,2]
[348472162,1736549439075,-504.14191721,9.799e-05,2]
[348472163,1736549439084,-500.0,9.799e-05,2]
[348472164,1736549439094,-501.02989664,9.799e-05,2]
[348472165,1736549439103,-500.0,9.799e-05,2]
[348472166,1736549439113,-503.47443321,9.799e-05,2]
[348472167,1736549439123,-500.0,9.799e-05,2]
[348472168,1736549439133,-500.0,9.799e-05,2]
[348472169,1736549439143,-500.0,9.799e-05,2]
[348472170,1736549439153,-500.0,9.799e-05,2]
[348472171,1736549439163,-500.0,9.799e-05,2]
[348472172,1736549439172,-500.0,9.799e-05,2]
[348472173,1736549439181,-525.01,9.799e-05,2]
[348472174,1736549439191,-613.53682204,9.799e-05,2]
[348472175,1736549439201,-500.0,9.799e-05,2]
[348472176,1736549439211,-500.0,9.799e-05,2]
[348472177,1736549439221,-500.0,9.799e-05,2]
[348472178,1736549439230,-500.0,9.799e-05,2]
[348472179,1736549439241,-500.0,9.799e-05,2]
[348472180,1736549439251,-500.0,9.799e-05,2]
[348472181,1736549439261,-500.0,9.799e-05,2]
[348472182,1736549439271,-500.0,9.799e-05,2]
[348472183,1736549439280,-500.0,9.799e-05,2]
[348472184,1736549439290,-500.0,9.799e-05,2]
[348472185,1736549439299,-500.0,9.799e-05,2]
[348472186,1736549439309,-500.0,9.799e-05,2]
[348472187,1736549439318,-500.0,9.799e-05,2]
[348472188,1736549439328,-500.0,9.799e-05,2]
[348472189,1736549439337,-500.0,9.799e-05,2]
[348472190,1736549439346,-500.0,9.799e-05,2]
[348472191,1736549439356,-500.0,9.799e-05,2]
[348472192,1736549439365,-500.0,9.799e-05,2]
[348472193,1736549439375,-500.0,9.799e-05,2]
[348472194,1736549439384,-500.0,9.799e-05,2]
[348472195,1736549439394,-500.0,9.799e-05,2]
[348472196,1736549439404,-500.0,9.799e-05,2]
[348472197,1736549439413,-500.0,9.799e-05,2]
[348472198,1736549439423,-500.0,9.799e-05,2]
[348472199,1736549439432,-388.8714847,9.799e-05,2]
[348472200,1736549439442,-500.0,9.799e-05,2]
[348472201,1736549439452,-500.0,9.799e-05,2]
[348472202,1736549439461,-506.15802987,9.799e-05,2]
[348472203,1736549439470,-500.0,9.799e-05,2]
[348472204,1736549439479,-500.0,9.799e-05,2]
[348472205,1736549439490,-973.96,9.799e-05,2]
[348472206,1736549439500,-500.0,9.799e-05,2]
[348472207,1736549439510,-500.0,9.799e-05,2]
[348472208,1736549439519,-500.0,9.799e-05,2]
[348472209,1736549439530,-500.0,9.799e-05,2]
[348472210,1736549439539,-500.0,9.799e-05,2]
[348472211,1736549439550,-573.67951457,9.799e-05,2]
[348472212,1736549439772,-500.0,9.799e-05,2]
[348472213,1736549439782,-500.0,9.799e-05,2]
[348472214,1736549439792,-500.0,9.799e-05,2]
[348472215,1736549439803,-500.0,9.799e-05,2]
[348472216,1736549439813,-500.0,9.799e-05,2]
[348472217,1736549439822,-500.0,9.799e-05,2]
[348472218,1736549439831,-500.0,9.799e-05,2]
[348472219,1736549439841,-1243.49,9.799e-05,2]
[348472220,1736549439850,-1244.48,9.799e-05,2]
[348472221,1736549439859,-186.98138002,9.799e-05,2]
[348472222,1736549439869,-600.82,9.799e-05,2]
[348472223,1736549439879,-500.0,9.799e-05,2]
[348472224,1736549439891,-500.0,9.799e-05,2]
[348472225,1736549439900,-500.0,9.799e-05,2]
[348472226,1736549439911,-500.0,9.799e-05,2]
[348472227,1736549439923,-500.0,9.799e-05,2]
[348472228,1736549439933,-1215.15,9.799e-05,2]
[348472229,1736549439944,-500.0,9.799e-05,2]
[348472230,1736549439954,-500.0,9.799e-05,2]
[348472231,1736549439967,-581.77827455,9.799e-05,2]
[348472232,1736549439978,-1025.02,9.799e-05,2]
[348472233,1736549439988,-3035.23,9.799e-05,2]
[348472234,1736549439999,-621.67,9.799e-05,2]
[348472235,1736549440010,-198.81553344,9.799e-05,2]
[348472236,1736549440021,-500.0,9.799e-05,2]
[348472237,1736549440030,-500.0,9.799e-05,2]
[348472238,1736549440042,-500.0,9.799e-05,2]
[348472239,1736549440053,-500.0,9.799e-05,2]
[348472240,1736549440064,-500.0,9.799e-05,2]
[348472241,1736549440074,-500.0,9.799e-05,2]
[348472242,1736549440083,-500.0,9.799e-05,2]
[348472245,1736549440093,-500.0,9.799e-05,2]
[348472247,1736549440103,-500.0,9.799e-05,2]
[348472248,1736549440114,-500.0,9.799e-05,2]
[348472249,1736549440125,-500.0,9.799e-05,2]
[348472250,1736549440135,-595.25,9.799e-05,2]
[348472251,1736549440147,-500.0,9.799e-05,2]
[348472252,1736549440157,-500.0,9.799e-05,2]
[348472253,1736549440167,-510.03102609,9.799e-05,2]
[348472254,1736549440177,-1982.32,9.799e-05,2]
[348472255,1736549440188,-500.0,9.799e-05,2]
[348472256,1736549440198,-500.0,9.799e-05,2]
[348472257,1736549440211,-506.41260666,9.799e-05,2]
[348472258,1736549440222,-500.0,9.799e-05,2]
[348472259,1736549440232,-1427.06,9.799e-05,2]
[348472260,1736549440243,-500.0,9.799e-05,2]
[348472261,1736549440254,-455.076,9.799e-05,2]
[348472262,1736549440265,-500.0,9.799e-05,2]
[348472263,1736549440275,-511.46,9.799e-05,2]
[348472264,1736549440285,-1070.14,9.799e-05,2]
[348472265,1736549440297,-500.0,9.799e-05,2]
[348472266,1736549440308,-510.8,9.799e-05,2]
[348472267,1736549440318,-666.13,9.799e-05,2]
[348472268,1736549440330,-569.17263049,9.799e-05,2]
[348472269,1736549440340,-542.94140953,9.799e-05,2]
[348472270,1736549440351,-500.0,9.799e-05,2]
[348472271,1736549440363,-500.0,9.799e-05,2]
[348472272,1736549440373,-500.0,9.799e-05,2]
[348472273,1736549440384,-500.0,9.799e-05,2]
[348472274,1736549440394,-1823.5,9.799e-05,2]
[348472275,1736549440405,-500.0,9.799e-05,2]
[348472276,1736549440416,-1784.36,9.799e-05,2]
[348472277,1736549440427,-500.0,9.799e-05,2]
[348472278,1736549440439,-1944.0,9.799e-05,2]
[348472279,1736549440450,-606.18626214,9.799e-05,2]
[348472280,1736549440460,-500.0,9.799e-05,2]
[348472281,1736549440469,-582.557303,9.799e-05,2]
[348472282,1736549440480,-500.0,9.799e-05,2]
[348472283,1736549440492,-500.0,9.799e-05,2]
[348472284,1736549440503,-500.0,9.799e-05,2]
[348472285,1736549440513,-525.03876904,9.799e-05,2]
[348472286,1736549440523,-500.0,9.799e-05,2]
[348472287,1736549440532,-237.9369295,9.799e-05,2]
[348472288,1736549440542,-500.0,9.799e-05,2]
[348472289,1736549440552,-200.58,9.799e-05,2]
[348472290,1736549440563,-927.48,9.799e-05,2]
[348472291,1736549440572,-500.0,9.799e-05,2]
[348472292,1736549440582,-573.4855,9.799e-05,2]
[348472293,1736549440591,-500.0,9.799e-05,2]
[348472294,1736549440601,-500.0,9.799e-05,2]
[348472295,1736549440611,-500.0,9.799e-05,2]
[348472296,1736549440620,-199.51,9.799e-05,2]
[348472297,1736549440630,-171.26,9.799e-05,2]
[348472298,1736549440639,-500.0,9.799e-05,2]
[348472299,1736549440651,-500.0,9.799e-05,2]
[348472301,1736549440660,-501.0724027,9.799e-05,2]
[348472303,1736549440670,-150.68112815,9.799e-05,2]
[348472305,1736549440679,-1799.71,9.799e-05,2]
[348472307,1736549440689,-1553.15,9.799e-05,2]
[348472309,1736549440699,-500.0,9.799e-05,2]
[348472311,1736549440710,-500.0,9.799e-05,2]
[348472313,1736549440719,-501.27678787,9.799e-05,2]
[348472315,1736549440729,-1104.73,9.799e-05,2]
[348472317,1736549440740,-873.42,9.799e-05,2]
[348472319,1736549440749,-500.0,9.799e-05,2]
[348472321,1736549440759,-500.0,9.799e-05,2]
[348472323,1736549440768,-500.0,9.799e-05,2]
[348472325,1736549440778,-500.0,9.799e-05,2]
[348472327,1736549440789,-500.0,9.799e-05,2]
[348472329,1736549440799,-500.0,9.799e-05,2]
[348472332,1736549440809,-500.0,9.799e-05,2]
[348472334,1736549440819,-500.0,9.799e-05,2]
[348472336,1736549440828,-500.0,9.799e-05,2]
[348472338,1736549440839,-575.16006284,9.799e-05,2]
[348472340,1736549440848,-500.0,9.799e-05,2]
[348472341,1736549440858,-795.35,9.799e-05,2]
[348472343,1736549440867,-396.54358092,9.799e-05,2]
[348472345,1736549440877,-1329.78,9.799e-05,2]
[348472347,1736549440886,-500.0,9.799e-05,2]
[348472349,1736549440895,-500.0,9.799e-05,2]
[348472351,1736549440905,-500.0,9.799e-05,2]
[348472353,1736549440915,-500.0,9.799e-05,2]
[348472355,1736549440925,-500.0,9.799e-05,2]
[348472357,1736549440934,-500.0,9.799e-05,2]
[348472360,1736549440944,-500.0,9.799e-05,2]
[348472362,1736549440956,-618.94,9.799e-05,2]
[348472364,1736549440966,-500.0,9.799e-05,2]
[348472366,1736549440976,-500.0,9.799e-05,2]
[348472367,1736549440986,-500.0,9.799e-05,2]
[348472369,1736549440995,-500.0,9.799e-05,2]
[348472372,1736549441005,-500.0,9.799e-05,2]
[348472374,1736549441015,-502.80202421,9.799e-05,2]
[348472376,1736549441024,-500.0,9.799e-05,2]
[348472377,1736549441034,-500.0,9.799e-05,2]
[348472379,1736549441047,-500.0,9.799e-05,2]
[348472381,1736549441058,-500.0,9.799e-05,2]
[348472383,1736549441067,-500.0,9.799e-05,2]
[348472385,1736549441076,-500.0,9.799e-05,2]
[348472387,1736549441086,-500.0,9.799e-05,2]
[348472389,1736549441095,-500.0,9.799e-05,2]
[348472391,1736549441104,-500.0,9.799e-05,2]
[348472393,1736549441114,-500.0,9.799e-05,2]
[348472395,1736549441123,-500.0,9.799e-05,2]
[348472397,1736549441132,-500.0,9.799e-05,2]
[348472399,1736549441141,-500.0,9.799e-05,2]
[348472401,1736549441150,-500.0,9.799e-05,2]
[348472403,1736549441160,-500.0,9.799e-05,2]
[348472405,1736549441170,-500.0,9.799e-05,2]
[348472407,1736549441180,-500.0,9.799e-05,2]
[348472409,1736549441189,-500.0,9.799e-05,2]